bitfinex-derivatives/quotes_ETHF0:USTF0_20251006
["timestamp","ask_amount","ask_price","bid_price","bid_amount"]
[1759772383364,0.00200418,4698.9,4698.8,41.7562]
[1759772384663,0.00200418,4698.9,4698.8,46.7562]
[1759772384858,0.5315,4700.1,4700.0,0.4301]
[1759772385062,0.7579,4700.1,4700.0,0.9562]
[1759772385966,0.7598452,4700.1,4700.0,0.95804821]
[1759772390163,1.1425852,4700.1,4700.0,0.00184821]
[1759772390476,0.7385,4698.9,4698.8,40.8]
[1759772390771,0.7385,4698.9,4698.8,41.015]
[1759772391067,0.7385,4698.9,4698.8,41.3495]
[1759772391268,0.7385,4698.9,4698.8,41.35175381]
[1759772391970,0.67789943,4698.9,4698.8,41.35175381]
[1759772393366,0.3125452,4700.1,4700.0,0.4164]
[1759772393571,0.99046928,4700.1,4700.0,0.9659]
[1759772393771,1.20286928,4700.1,4700.0,0.6314]
[1759772393967,1.20286928,4700.1,4700.0,0.215]
[1759772394672,0.51244,4700.0,4699.9,0.2053]
[1759772394869,1.02002408,4700.0,4699.9,0.4203]
[1759772395070,1.33062408,4700.0,4699.9,0.4203]
[1759772395769,0.7385,4699.2,4699.1,0.4164]
[1759772396075,0.7385,4699.2,4699.1,1.13372]
[1759772396076,1.20092408,4699.2,4699.1,1.13372]
[1759772396367,1.20092408,4699.2,4699.1,0.9659]
[1759772397169,1.58373408,4699.2,4698.8,0.00225381]
[1759772397471,0.7385,4698.9,4698.8,0.00225381]
[1759772397667,1.20092408,4698.9,4698.8,0.29155381]
[1759772397869,1.20092408,4698.9,4698.8,0.50265381]
[1759772398067,1.20092408,4698.9,4698.8,0.83715381]
[1759772398974,1.20092408,4698.9,4698.8,0.96815381]
[1759772399381,0.46242408,4698.9,4698.8,0.96815381]
[1759772399568,1.20116528,4699.4,4699.3,0.7509]
[1759772399768,1.20116528,4699.4,4699.3,0.2053]
[1759772400373,1.20119016,4699.4,4698.9,0.71733]
[1759772400567,1.20119016,4699.3,4699.2,0.215]
[1759772400767,1.20119016,4699.3,4699.2,0.4203]
[1759772401763,0.46269016,4699.3,4699.2,0.9659]
[1759772402782,0.98879016,4699.3,4699.2,0.9659]
[1759772403070,0.98879016,4699.3,4699.2,0.7509]
[1759772403272,1.20119016,4699.3,4699.2,0.9659]
[1759772403478,1.20119016,4699.3,4699.2,41.0053]
[1759772403678,1.20119016,4699.3,4699.2,41.2203]
[1759772404279,1.20119016,4699.3,4699.2,41.5548]
[1759772405379,0.7385,4698.9,4698.8,0.00225381]
[1759772405573,1.20119016,4698.9,4698.8,0.96815381]
[1759772405773,1.20119016,4698.9,4698.8,0.75315381]
[1759772405973,1.20119016,4698.9,4698.8,41.76815381]
[1759772406269,1.20119016,4698.9,4698.8,42.15099381]
[1759772406475,6.20119016,4698.9,4698.8,0.00225381]
[1759772412374,1.20119016,4698.9,4698.8,0.00225381]
[1759772412578,1.20119016,4698.9,4697.6,1.13384]
[1759772412579,0.5261,4697.7,4697.6,1.13384]
[1759772412778,0.98879016,4697.7,4697.6,1.34884]
[1759772413183,0.46269016,4697.7,4697.6,1.34884]
[1759772413487,0.99176354,4698.0,4697.9,1.13381]
[1759772413787,0.99176198,4698.0,4697.9,1.13381]
[1759772414186,0.46566198,4698.0,4697.9,1.13381]
[1759772414981,0.59837,4698.4,4698.3,0.2053]
[1759772415285,1.27635456,4698.4,4698.3,41.5548]
[1759772415584,1.20408456,4698.4,4698.3,41.5548]
[1759772415886,1.20408456,4698.4,4698.3,41.2203]
[1759772416384,1.20408456,4698.4,4698.3,41.3398]
[1759772416587,1.20408456,4698.4,4698.3,41.5548]
[1759772416886,1.20408456,4698.4,4698.3,0.9659]
[1759772417086,0.46558456,4698.4,4698.3,0.9659]
[1759772417384,0.46558456,4698.4,4698.3,41.7659]
[1759772417684,0.46558456,4698.4,4698.3,42.14878]
[1759772418683,1.00458456,4698.4,4698.3,0.9659]
[1759772418882,1.21808456,4698.4,4698.3,1.13378]
[1759772419180,0.68108456,4698.4,4698.3,1.34878]
[1759772419584,0.46558456,4698.4,4698.3,1.34878]
[1759772421687,0.67148456,4698.4,4698.3,1.34878]
[1759772421882,0.46558456,4698.4,4698.3,1.34878]
[1759772423087,0.3235,4699.2,4698.3,0.9659]
[1759772423292,1.20871593,4699.1,4699.0,1.10552]
[1759772423490,1.20871593,4699.1,4699.0,1.32052]
[1759772423691,1.20871593,4699.1,4699.0,0.79912]
[1759772423893,0.7429,4698.7,4698.6,1.10556]
[1759772424090,1.20871593,4698.7,4698.6,1.32056]
[1759772424288,1.20871593,4698.7,4698.6,42.12056]
[1759772424489,1.20871593,4698.7,4698.6,41.90556]
[1759772424687,1.20871593,4698.7,4698.6,42.12056]
[1759772425088,0.46581593,4698.7,4698.6,42.12056]
[1759772425288,0.5294,4699.0,4698.9,1.10553]
[1759772425484,0.99545975,4699.0,4698.9,1.32053]
[1759772426495,1.20895975,4699.0,4698.9,1.32053]
[1759772427395,0.67195975,4699.0,4698.9,1.32053]
[1759772427599,0.46605975,4699.0,4698.9,1.32053]
[1759772427990,0.2059,4699.5,4699.4,1.10548]
[1759772428186,0.2059,4699.7,4699.6,0.79908]
[1759772428393,0.67194666,4699.7,4699.6,1.10548]
[1759772428899,0.99544666,4699.7,4699.6,1.10548]
[1759772429197,1.20894666,4699.7,4699.6,0.7227]
[1759772430096,1.20894666,4699.7,4699.6,0.9377]
[1759772430703,1.20894666,4699.7,4699.6,0.4163]
[1759772430995,1.20894666,4699.7,4699.6,0.4179]
[1759772433894,1.20894666,4699.7,4699.6,0.2029]
[1759772434192,0.5294,4699.1,4699.0,1.10553]
[1759772434394,0.99544666,4699.1,4699.0,1.10553]
[1759772434699,0.99544666,4699.1,4699.0,1.44813]
[1759772434898,0.99544666,4699.1,4699.0,1.23313]
[1759772435196,0.99544666,4699.1,4699.0,1.44813]
[1759772436286,0.67194666,4699.1,4699.0,1.44813]
[1759772436895,0.67194666,4699.1,4699.0,1.23313]
[1759772437090,0.98214666,4699.1,4699.0,1.44813]
[1759772437495,0.98214666,4699.1,4699.0,1.23313]
[1759772437694,1.19694666,4699.1,4699.0,1.10553]
[1759772437896,1.19694666,4699.1,4699.0,1.32053]
[1759772438200,1.19694666,4699.1,4699.0,1.10553]
[1759772438399,1.19694666,4699.1,4699.0,1.32053]
[1759772440201,1.19694666,4699.1,4699.0,1.10553]
[1759772440398,1.19694666,4699.1,4699.0,1.32053]
[1759772442401,1.19694666,4699.1,4699.0,1.10553]
[1759772442599,1.19694666,4699.1,4699.0,1.32053]
[1759772442803,1.19694666,4699.1,4699.0,1.10553]
[1759772443007,1.19694666,4699.1,4699.0,1.32053]
[1759772443308,1.19694666,4699.1,4699.0,1.10553]
[1759772443509,1.19694666,4699.1,4699.0,1.32053]
[1759772444698,1.19694666,4699.1,4699.0,0.91833]
[1759772444903,1.19694666,4699.1,4699.0,1.34103]
[1759772445210,0.46604666,4699.1,4699.0,1.46823]
[1759772446212,1.20284666,4699.1,4699.0,1.34103]
[1759772447812,1.20284666,4699.1,4699.0,1.12603]
[1759772448013,1.20284666,4699.1,4699.0,1.34103]
[1759772448711,1.20284666,4699.1,4699.0,1.12603]
[1759772449107,1.20284666,4699.1,4699.0,1.34103]
[1759772449509,0.4364,4698.8,4698.7,40.8]
[1759772449713,0.7612,4698.8,4698.7,41.70205]
[1759772450014,1.22724666,4698.8,4698.7,0.90445]
[1759772450208,1.22724666,4698.8,4698.7,1.10705]
[1759772450418,1.22724666,4698.8,4698.7,1.32205]
[1759772451008,1.22724666,4698.8,4698.7,0.38285]
[1759772451312,1.22724666,4698.8,4698.7,1.32205]
[1759772452214,0.46604666,4698.8,4698.7,1.32205]
[1759772452413,1.01247828,4699.4,4699.3,1.107]
[1759772452609,0.68767828,4699.4,4699.3,1.322]
[1759772452810,0.46647828,4699.4,4699.3,42.122]
[1759772453111,0.46647828,4699.4,4699.3,47.122]
[1759772453509,0.0019452,4700.1,4700.0,0.80274]
[1759772453708,0.2231452,4700.1,4700.0,1.32194]
[1759772453912,0.7631452,4700.1,4700.0,1.32194]
[1759772454110,0.2212,4699.8,4699.7,0.2174]
[1759772454311,0.4364,4699.8,4699.7,0.215]
[1759772454519,0.2231452,4700.1,4700.0,0.42]
[1759772454820,0.7631452,4700.1,4700.0,0.9392]
[1759772455215,0.7631452,4700.1,4700.0,0.635]
[1759772455414,0.546,4699.4,4699.3,41.1042]
[1759772455805,0.0019452,4700.1,4700.0,0.3042]
[1759772456010,0.2231452,4700.1,4700.0,0.9392]
[1759772456413,0.5479452,4700.1,4700.0,0.9392]
[1759772456716,0.7631452,4700.1,4700.0,0.9392]
[1759772457315,0.7631452,4700.1,4700.0,0.7242]
[1759772457518,0.7631452,4700.1,4700.0,0.9392]
[1759772458116,0.0019452,4700.1,4700.0,1.0608]
[1759772458510,0.7631452,4700.1,4700.0,0.9392]
[1759772458916,0.0019452,4700.1,4700.0,1.0608]
[1759772459315,0.7631452,4700.1,4700.0,0.7242]
[1759772459617,0.7631452,4700.1,4700.0,0.9392]
[1759772460418,0.7631452,4700.1,4700.0,0.7242]
[1759772460815,0.7631452,4700.1,4700.0,0.9392]
[1759772462913,0.7631452,4700.1,4700.0,0.7242]
[1759772463115,0.2152,4699.5,4699.4,0.3042]
[1759772463319,0.8929,4699.5,4699.1,0.3042]
[1759772463521,0.8929,4699.5,4699.4,0.2174]
[1759772463716,0.8929,4699.5,4699.4,0.7242]
[1759772465524,1.35687608,4699.5,4699.4,0.7242]
[1759772466318,1.13567608,4699.5,4699.4,0.215]
[1759772466514,1.73965608,4699.5,4699.4,0.215]
[1759772466821,1.14399,4699.4,4699.3,0.2174]
[1759772467023,1.22517608,4699.4,4699.3,0.5216]
[1759772467215,1.22517608,4699.4,4699.3,0.9392]
[1759772467923,1.22517608,4699.4,4699.3,0.7242]
[1759772468124,1.22517608,4699.4,4699.3,0.9392]
[1759772469225,1.22517608,4699.4,4699.3,0.7242]
[1759772469524,1.22517608,4699.4,4699.3,0.2174]
[1759772469716,1.22517608,4699.4,4699.3,0.4324]
[1759772469916,0.3248,4699.3,4698.9,40.8]
[1759772470115,0.7612,4699.1,4699.0,0.4324]
[1759772470322,0.7612,4699.1,4699.0,1.0608]
[1759772470323,0.68517608,4699.1,4699.0,1.0608]
[1759772471121,1.00997608,4699.1,4699.0,1.0608]
[1759772471526,1.00997608,4699.1,4699.0,1.32203]
[1759772471925,1.00997608,4699.1,4699.0,0.2174]
[1759772471926,1.22517608,4699.1,4699.0,0.2174]
[1759772472126,1.22517608,4699.1,4699.0,0.81523]
[1759772473223,1.22517608,4699.1,4699.0,1.32203]
[1759772473630,0.46397608,4699.1,4699.0,1.44363]
[1759772474027,0.2212,4699.8,4699.7,1.10696]
[1759772474327,0.2212,4700.0,4699.9,1.10695]
[1759772474524,0.68404682,4700.0,4699.9,1.10695]
[1759772475930,0.46284682,4700.0,4699.9,1.10695]
[1759772476230,1.00884682,4700.0,4699.9,1.10695]
[1759772476526,0.68404682,4700.0,4699.9,1.10695]
[1759772477228,0.68404682,4700.0,4699.9,1.32095]
[1759772478030,1.35574682,4700.0,4699.9,0.4314]
[1759772478619,1.35574682,4700.0,4699.9,0.9649]
[1759772478620,0.46284682,4700.0,4699.9,0.9649]
[1759772478827,0.46284682,4700.0,4699.9,5.9649]
[1759772479124,0.0019452,4700.1,4700.0,1.25544]
[1759772479734,0.1317,4701.5,4700.8,0.438]
[1759772480026,0.89472802,4701.4,4701.3,0.7501]
[1759772480227,0.89472802,4701.4,4701.3,0.9641]
[1759772480427,1.22052802,4701.4,4701.3,0.9641]
[1759772480627,1.22240183,4701.4,4701.3,0.9667447]
[1759772483925,0.75977381,4701.4,4701.3,0.7527447]
[1759772484133,0.75977381,4701.4,4701.3,0.6546447]
[1759772484936,1.22145009,4701.4,4701.3,0.6546447]
[1759772485324,1.22127194,4701.4,4701.3,0.9667447]
[1759772485530,1.22127194,4701.4,4701.3,0.7527447]
[1759772485730,1.22127194,4701.4,4701.3,0.9667447]
[1759772486136,0.46337194,4701.4,4701.3,0.9667447]
[1759772486437,0.22367381,4701.4,4701.3,1.3493847]
[1759772486624,0.54947381,4701.4,4701.3,1.3493847]
[1759772486824,0.54947381,4701.4,4701.3,1.1353847]
[1759772487032,0.54947381,4701.4,4701.3,1.3493847]
[1759772487534,0.00187381,4701.4,4701.3,1.3493847]
[1759772489034,0.54947381,4701.4,4701.3,1.1353847]
[1759772489236,0.22367381,4701.4,4701.3,1.3493847]
[1759772489636,0.10999122,4701.4,4701.3,1.3493847]
[1759772491844,0.65759122,4701.4,4701.3,1.3493847]
[1759772492142,0.10999122,4701.4,4701.3,1.3493847]
[1759772493238,0.86789122,4701.4,4701.3,0.7527447]
[1759772493444,0.86789122,4701.4,4700.8,0.2166]
[1759772493445,1.14057,4700.9,4700.8,0.2166]
[1759772493742,0.86601741,4700.9,4700.8,0.9641]
[1759772494440,0.86601741,4700.9,4700.8,0.96684641]
[1759772494944,1.32670899,4700.9,4700.8,0.96684641]
[1759772495645,1.32670899,4700.9,4700.8,0.75284641]
[1759772495845,1.32670899,4700.9,4700.8,0.96684641]
[1759772496440,0.56880899,4700.9,4700.8,0.96684641]
[1759772497039,1.08510899,4700.9,4700.8,0.96684641]
[1759772497634,1.29240899,4700.9,4700.8,0.75284641]
[1759772497837,1.29240899,4700.9,4700.8,0.43334641]
[1759772498041,1.29240899,4700.9,4700.8,0.97444641]
[1759772499146,1.29240899,4700.9,4700.8,0.76044641]
[1759772499346,1.29240899,4700.9,4700.8,0.97444641]
[1759772500350,0.56880899,4700.9,4700.8,1.35712641]
[1759772501149,1.08510899,4700.9,4700.8,1.35712641]
[1759772501834,0.77010899,4700.9,4700.8,1.35712641]
[1759772502040,0.56880899,4700.9,4700.8,1.35712641]
[1759772503253,1.08510899,4700.9,4700.8,1.35712641]
[1759772503447,1.29240899,4700.9,4700.8,1.14312641]
[1759772503749,1.29240899,4700.9,4700.8,0.81602641]
[1759772504251,1.29240899,4700.9,4700.8,1.35712641]
[1759772505052,0.62441741,4700.9,4700.8,1.35712641]
[1759772505252,1.08718861,4700.9,4700.8,1.35712641]
[1759772505447,1.29448861,4700.9,4700.8,1.35712641]
[1759772507856,1.29448861,4700.9,4700.8,1.14312641]
[1759772508150,1.29448861,4700.9,4700.8,1.35712641]
[1759772508952,1.29448861,4700.9,4700.8,1.14312641]
[1759772509153,1.29448861,4700.9,4700.8,1.35712641]
[1759772509357,1.29448861,4700.9,4700.8,1.14312641]
[1759772509554,1.29448861,4700.9,4700.8,1.35712641]
[1759772509860,1.29448861,4700.9,4700.8,1.14312641]
[1759772510155,1.29448861,4700.9,4700.8,1.35712641]
[1759772510958,1.29448861,4700.9,4700.8,1.14312641]
[1759772511160,1.29448861,4700.9,4700.8,1.35712641]
[1759772514163,1.29448861,4700.9,4700.8,1.14312641]
[1759772514367,1.29448861,4700.9,4700.8,1.35712641]
[1759772514866,1.29448861,4700.9,4700.8,1.14312641]
[1759772515165,1.29448861,4700.9,4700.8,1.35712641]
[1759772518072,1.29448861,4700.9,4700.8,1.03062641]
[1759772519169,1.29448861,4700.9,4700.8,1.35062641]
[1759772520071,1.29448861,4700.9,4700.8,1.13662641]
[1759772520273,1.29448861,4700.9,4700.8,1.35062641]
[1759772521673,1.29448861,4700.9,4700.8,1.13662641]
[1759772521871,1.29448861,4700.9,4700.8,1.35062641]
[1759772522375,0.57088861,4700.9,4700.8,1.35062641]
[1759772523283,1.09788861,4700.9,4700.8,1.35062641]
[1759772523475,1.31868861,4700.9,4700.8,1.35062641]
[1759772527179,0.57088861,4700.9,4700.8,1.35062641]
[1759772527982,0.78688861,4700.9,4700.8,1.35062641]
[1759772528176,1.09788861,4700.9,4700.8,1.35062641]
[1759772528882,1.09788861,4700.9,4700.8,1.13662641]
[1759772529083,0.78688861,4700.9,4700.8,1.35062641]
[1759772530278,0.57088861,4700.9,4700.8,1.35062641]
[1759772530778,0.57088861,4700.9,4700.8,42.15062641]
[1759772532675,0.57088861,4700.9,4700.8,41.93662641]
[1759772532881,1.31868861,4700.9,4700.8,0.00274641]
[1759772533075,1.70135861,4700.9,4700.8,0.00274641]
[1759772533385,1.31868861,4700.9,4700.8,0.00274641]
[1759772533573,1.31868861,4700.9,4700.8,0.21674641]
[1759772533980,1.31868861,4700.9,4700.0,41.12]
[1759772533981,0.7478,4699.8,4699.7,0.58857]
[1759772534184,0.4368,4699.2,4699.1,0.38282]
[1759772534380,0.90032228,4699.2,4699.1,0.59682]
[1759772534577,1.00843969,4699.2,4699.1,0.59682]
[1759772534783,1.31943969,4699.2,4699.1,0.59682]
[1759772534984,1.31943969,4699.2,4699.1,0.59839172]
[1759772535686,1.31943969,4699.2,4699.1,0.38439172]
[1759772535882,1.31943969,4699.2,4696.5,0.1275]
[1759772535883,6.31943969,4699.2,4698.2,0.32]
[1759772536087,0.7478,4698.6,4698.5,0.38286]
[1759772536280,0.7478,4698.6,4698.5,0.59686]
[1759772536689,0.85591741,4698.6,4698.5,0.59686]
[1759772536883,0.85591741,4698.6,4698.5,0.59961972]
[1759772537681,0.85591741,4698.6,4698.5,1.32691972]
[1759772538285,0.4314,4699.5,4699.0,0.3214]
[1759772538489,0.2145,4699.5,4699.4,1.13139]
[1759772538678,0.8535,4699.5,4699.2,0.38281]
[1759772538881,0.3034,4698.8,4698.6,0.38286]
[1759772539089,0.73,4698.7,4698.6,0.38286]
[1759772539287,0.73,4698.7,4698.6,0.59686]
[1759772539484,0.73,4698.7,4698.6,0.80486]
[1759772539689,0.73,4698.7,4698.6,1.34546]
[1759772539884,0.73,4698.7,4698.6,1.13146]
[1759772540084,0.73,4698.7,4698.6,1.34546]
[1759772542582,0.73,4698.7,4698.6,1.02406]
[1759772542788,0.73,4698.7,4698.6,0.59686]
[1759772542982,0.73,4698.7,4698.6,0.80486]
[1759772543187,0.73,4698.7,4698.6,1.34546]
[1759772545993,0.73,4698.7,4698.6,1.13146]
[1759772546194,0.73,4698.7,4698.6,1.34546]
[1759772548495,0.73,4698.7,4698.6,1.02406]
[1759772549298,0.73,4698.7,4698.6,1.34546]
[1759772550994,0.73,4698.7,4698.6,1.13146]
[1759772551194,0.73,4698.7,4698.6,1.34546]
[1759772552200,0.5179,4699.0,4698.9,0.7486]
[1759772552700,0.73,4699.0,4698.9,0.7486]
[1759772553296,0.73,4699.0,4698.9,1.13143]
[1759772553496,0.8535,4699.0,4698.9,1.13143]
[1759772553898,0.8535,4699.0,4698.9,0.59083]
[1759772554197,0.8535,4699.0,4698.9,0.59683]
[1759772554595,0.8535,4699.0,4698.9,0.38283]
[1759772556302,0.4285,4698.6,4698.5,0.00275972]
[1759772556601,1.13956,4698.6,4698.5,0.00275972]
[1759772556802,0.7567,4698.6,4698.5,0.00275972]
[1759772557002,0.7567,4698.6,4698.5,0.20415972]
[1759772557203,0.7567,4698.6,4698.5,0.00275972]
[1759772559102,0.2126,4698.6,4698.5,0.84765972]
[1759772559294,0.5408,4698.9,4698.8,0.7206]
[1759772559498,0.7567,4698.9,4698.8,0.7206]
[1759772559702,0.7567,4698.9,4698.8,0.4035]
[1759772560000,0.7567,4698.9,4698.8,0.214]
[1759772560309,1.21891459,4698.9,4698.7,0.38285]
[1759772560500,0.7567,4698.9,4698.7,0.38285]
[1759772560701,0.3282,4698.8,4698.7,0.59685]
[1759772561005,0.7567,4698.8,4698.7,0.38285]
[1759772561201,1.21895657,4698.8,4698.7,0.59685]
[1759772561692,1.21895657,4698.8,4698.7,0.38285]
[1759772561897,1.21895657,4698.8,4698.7,0.58425]
[1759772562091,1.21895657,4698.8,4698.7,1.10345]
[1759772562092,1.00305657,4698.8,4698.7,1.10345]
[1759772562305,1.00305657,4698.8,4698.7,1.31745]
[1759772564101,1.21895657,4698.8,4698.7,0.9346]
[1759772564401,0.46225657,4698.8,4698.7,0.9346]
[1759772564602,0.3282,4699.8,4698.7,5.7332]
[1759772564806,1.22054178,4699.7,4699.6,1.10338]
[1759772565000,1.22054178,4699.7,4699.6,0.38278]
[1759772565203,1.22054178,4699.7,4699.2,40.8]
[1759772565204,0.7567,4699.3,4699.2,1.10341]
[1759772565404,1.22054178,4699.3,4699.2,1.31741]
[1759772565801,0.46384178,4699.3,4699.2,1.31741]
[1759772566006,0.128,4700.0,4699.2,1.31741]
[1759772566007,0.5408,4699.6,4699.5,1.10339]
[1759772566207,1.22051566,4699.6,4699.5,0.59679]
[1759772567506,1.22051566,4699.6,4699.5,0.38279]
[1759772568303,1.22051566,4699.6,4699.5,0.58419]
[1759772568704,1.22051566,4699.6,4699.5,0.38279]
[1759772569208,1.22051566,4699.6,4699.5,0.59139]
[1759772570212,1.22051566,4699.6,4699.4,0.38279]
[1759772570213,0.537,4699.5,4699.4,0.38279]
[1759772570510,1.31041566,4699.5,4699.4,0.38279]
[1759772572911,1.31041566,4699.5,4698.6,0.95714]
[1759772572912,0.8466,4699.0,4698.9,0.38283]
[1759772573099,1.31041566,4699.0,4698.9,0.80543]
[1759772573301,1.31041566,4699.0,4698.9,1.10663]
[1759772573705,1.31041566,4699.0,4698.9,0.89263]
[1759772574106,1.31041566,4699.0,4698.9,1.10663]
[1759772574315,1.31041566,4699.0,4698.9,0.38283]
[1759772574612,1.31041566,4699.0,4698.8,0.38284]
[1759772574808,0.87791566,4698.9,4698.8,0.38284]
[1759772575013,1.18751566,4698.9,4698.8,0.38284]
[1759772575312,1.26074566,4698.9,4698.6,0.59685]
[1759772575612,0.7237,4698.7,4698.6,0.38285]
[1759772575810,1.18751566,4698.7,4698.6,0.38285]
[1759772576812,1.18751566,4698.7,4698.6,0.59145]
[1759772577311,1.18751566,4698.7,4698.6,0.89265]
[1759772577511,1.18751566,4698.7,4698.6,0.59145]
[1759772577708,1.18751566,4698.7,4698.6,0.38285]
[1759772580116,1.18751566,4698.7,4698.5,0.21675972]
[1759772580117,1.57036566,4698.7,4698.5,0.38561972]
[1759772580316,0.87791566,4698.6,4698.5,0.00275972]
[1759772580518,1.18751566,4698.6,4698.5,0.38562972]
[1759772580917,1.18751566,4698.6,4697.4,0.59156]
[1759772580918,0.8466,4697.5,4697.4,0.59156]
[1759772581208,0.8466,4697.5,4697.4,0.2086]
[1759772581409,0.7237,4696.9,4695.8,0.3012]
[1759772581612,1.18698268,4696.8,4696.7,1.10531]
[1759772581810,0.3096,4697.4,4697.2,0.3012]
[1759772582005,0.1229,4697.5,4697.2,0.3012]
[1759772582006,0.8466,4697.5,4697.4,0.7223]
[1759772582211,1.18852557,4697.5,4697.4,0.7223]
[1759772584613,1.31142557,4697.5,4697.4,0.7223]
[1759772584915,1.18852557,4697.5,4697.4,0.7223]
[1759772585118,0.38296,4697.4,4697.2,0.00191435]
[1759772585317,1.18703274,4697.3,4697.2,0.00191435]
[1759772587114,9.00565092,4697.3,4697.2,0.00191435]
[1759772593018,9.21965092,4697.3,4697.2,0.00191435]
[1759772593916,0.7237,4696.3,4696.2,0.7223]
[1759772594818,0.7237,4696.3,4696.2,0.4236759]
[1759772595122,0.7237,4696.3,4696.2,0.2111759]
[1759772595416,0.7237,4696.3,4696.2,0.7248759]
[1759772599423,0.7237,4696.3,4696.2,0.2111759]
[1759772601722,0.514,4696.3,4696.2,0.7212759]
[1759772602426,0.5344,4696.9,4696.8,0.2098]
[1759772602624,0.12439283,4697.5,4697.3,0.88756]
[1759772602625,0.7471,4697.4,4697.3,0.88756]
[1759772602819,1.20945544,4697.4,4697.3,1.09736]
[1759772603428,1.20945544,4697.4,4697.3,0.79706]
[1759772604623,1.20945544,4697.4,4697.0,0.3003]
[1759772604826,0.7471,4697.1,4697.0,0.88759]
[1759772605225,1.21015401,4697.1,4697.0,1.09739]
[1759772606724,0.46305401,4697.1,4697.0,1.21789]
[1759772606915,0.00149283,4697.5,4697.4,0.58726]
[1759772607122,0.00149283,4697.5,4697.4,1.09736]
[1759772607323,0.46480342,4697.5,4697.4,1.09736]
[1759772607521,0.00149283,4697.5,4697.4,1.09736]
[1759772608234,0.46531195,4697.5,4697.4,1.09736]
[1759772615138,0.46550254,4697.5,4697.4,1.09736]
[1759772617827,0.66660254,4697.5,4697.4,1.09736]
[1759772618038,0.98440254,4697.5,4697.4,1.09736]
[1759772619439,0.46550254,4697.5,4697.4,1.09736]
[1759772621337,1.19250254,4697.5,4697.4,1.31136]
[1759772621534,0.4092,4696.7,4696.5,0.38303]
[1759772621837,0.727,4696.6,4696.1,0.3288]
[1759772622037,0.4092,4696.3,4696.1,0.38306]
[1759772622228,0.727,4696.3,4696.1,0.38306]
[1759772622946,1.19087982,4696.3,4696.2,0.2026759]
[1759772623340,1.19087982,4696.3,4696.2,0.0025759]
[1759772624245,1.19087982,4696.3,4696.2,0.2026759]
[1759772624743,1.19087982,4696.3,4696.2,0.0025759]
[1759772625642,0.727,4696.3,4696.2,0.0025759]
[1759772626842,1.19086077,4696.3,4696.2,0.0025759]
[1759772627037,1.19086077,4696.3,4696.2,0.3856259]
[1759772627935,1.19086077,4696.3,4696.2,0.0025759]
[1759772633342,1.19086077,4696.3,4696.2,0.2042759]
[1759772633541,1.19086077,4696.3,4696.2,0.7368759]
[1759772633741,0.46386077,4696.3,4696.2,0.7368759]
[1759772634047,0.7284,4696.8,4696.7,1.11731]
[1759772634246,1.19178274,4696.8,4696.7,1.11731]
[1759772634640,1.19176318,4696.8,4696.7,0.2017]
[1759772634845,0.851,4696.5,4696.4,0.38303]
[1759772635045,1.31439414,4696.5,4696.4,0.38303]
[1759772635545,1.31439414,4696.5,4696.3,0.38304]
[1759772635749,1.19179414,4696.4,4696.3,0.58474]
[1759772637648,1.19179414,4696.4,4696.3,0.38304]
[1759772638350,1.19179414,4696.4,4696.3,0.7343]
[1759772640152,1.19179414,4696.4,4696.3,0.2017]
[1759772641154,1.19179414,4696.4,4696.3,0.7343]
[1759772641356,1.19179414,4696.4,4696.2,0.3856259]
[1759772641556,1.19179414,4696.3,4696.2,0.9041259]
[1759772641758,1.19179414,4696.3,4696.2,0.5873259]
[1759772644857,0.7284,4696.3,4696.2,1.1199259]
[1759772645854,1.19210109,4696.3,4696.2,0.3856259]
[1759772646651,1.19210109,4696.3,4696.2,0.0025759]
[1759772650859,1.19210109,4696.3,4696.2,0.2042759]
[1759772651055,1.19210109,4696.3,4696.2,0.0025759]
[1759772653360,1.19210109,4696.3,4696.2,0.2042759]
[1759772653761,1.19210109,4696.3,4696.2,0.0025759]
[1759772654962,1.19210109,4696.3,4696.2,0.3856259]
[1759772655162,1.19210109,4696.3,4696.2,1.1199259]
[1759772659465,1.19210109,4696.3,4696.2,0.5873259]
[1759772659665,1.19210109,4696.3,4696.2,0.9073259]
[1759772659865,1.19210109,4696.3,4696.2,1.1292259]
[1759772661160,1.19210109,4696.3,4696.2,0.8092259]
[1759772661563,1.19210109,4696.3,4696.2,1.1292259]
[1759772662568,1.19210109,4696.3,4696.2,0.8092259]
[1759772662865,1.19210109,4696.3,4696.2,0.5873259]
[1759772663555,1.19210109,4696.3,4696.2,1.1292259]
[1759772664967,0.67140109,4696.3,4696.2,1.1292259]
[1759772665165,0.5223,4697.4,4697.0,1.08928]
[1759772665370,0.00149283,4697.5,4697.4,0.7539]
[1759772665865,0.22249283,4697.5,4697.4,0.7539]
[1759772666065,0.00149283,4697.5,4697.4,0.7539]
[1759772666459,0.00149283,4697.5,4697.4,0.9679]
[1759772669169,0.5223,4698.3,4698.2,1.13679]
[1759772669671,0.7404,4698.3,4698.2,1.13679]
[1759772669871,0.3013,4698.6,4698.5,0.38287]
[1759772670171,0.1332,4699.0,4698.8,0.38284]
[1759772670172,0.7404,4698.9,4698.8,0.38284]
[1759772670370,0.74190654,4698.9,4698.8,0.59484]
[1759772670572,0.74190654,4698.9,4698.8,0.91484]
[1759772670971,0.74190654,4698.9,4698.8,0.59484]
[1759772672473,0.74190654,4698.9,4698.8,0.38284]
[1759772672667,0.1332,4698.5,4698.1,0.32]
[1759772672872,0.7404,4697.8,4697.7,1.13683]
[1759772673080,0.7404,4697.8,4697.7,1.35083]
[1759772673281,0.8736,4698.5,4698.4,1.13677]
[1759772673776,0.8736,4698.5,4698.4,0.81677]
[1759772673967,0.8736,4698.5,4698.4,0.38287]
[1759772674375,0.7404,4698.5,4698.4,0.91487]
[1759772674676,0.7404,4698.5,4698.4,1.13677]
[1759772674878,0.8736,4698.5,4698.4,1.13677]
[1759772675075,0.8736,4698.5,4698.4,0.81677]
[1759772675479,0.8736,4698.5,4698.4,1.13677]
[1759772675480,0.7404,4698.5,4698.4,1.13677]
[1759772677378,0.5661,4698.5,4697.8,0.3292]
[1759772677576,0.5064,4698.4,4698.3,1.13318]
[1759772678572,0.3016,4698.7,4698.6,0.2182]
[1759772678779,0.5064,4698.7,4698.6,1.13316]
[1759772679077,0.711,4698.7,4698.6,1.13316]